bitfinex/quotes_ETHUSD_20250814
["timestamp","ask_amount","ask_price","bid_price","bid_amount"]
[1755180484434,0.16237737,4582.3,4580.9,0.02182977]
[1755180484629,1.3736,4582.6,4581.3,2.18275752]
[1755180484803,2.18203332,4582.9,4581.9,2.18245316]
[1755180484991,21.00396177,4582.2,4579.6,0.1088]
[1755180485336,2.18259597,4581.7,4580.0,0.02483406]
[1755180485625,2.1827856,4581.4,4580.0,0.1118]
[1755180485830,5.18279715,4581.3,4580.1,2.18335097]
[1755180486006,2.18254834,4581.8,4580.0,0.003]
[1755180486208,0.55,4581.6,4580.0,0.003]
[1755180486400,3.57177763,4581.7,4580.0,0.003]
[1755180486401,2.182987,4580.9,4580.0,2.18636117]
[1755180486600,2.18258294,4581.8,4580.5,0.4313]
[1755180486931,5.18269447,4581.5,4580.6,2.20494704]
[1755180487089,2.18245307,4582.0,4580.8,2.18300077]
[1755180487291,2.18232052,4582.3,4581.4,2.18271165]
[1755180487527,0.20094195,4582.4,4581.0,0.4313]
[1755180487833,0.3091598,4582.9,4581.2,2.18280478]
[1755180488032,2.18230516,4582.4,4581.6,2.1826355]
[1755180488245,0.24910936,4582.8,4581.1,0.1088]
[1755180488429,4.3736,4582.7,4581.3,2.18276424]
[1755180488605,1.3736,4582.7,4581.4,0.02182738]
[1755180488801,0.20104738,4583.2,4581.5,0.4313]
[1755180489146,0.20104738,4583.2,4579.3,21.00396177]
[1755180489147,0.20104738,4583.9,4582.3,0.1088]
[1755180489314,21.65871277,4584.9,4581.3,2.18277334]
[1755180489315,0.20104738,4584.7,4583.3,0.1088]
[1755180489636,0.20104738,4585.1,4583.4,0.45311786]
[1755180489842,2.18047319,4586.2,4583.4,0.45311786]
[1755180489843,0.20104738,4585.7,4584.2,0.1088]
[1755180490060,0.20107427,4586.6,4585.0,0.1088]
[1755180490199,0.20104999,4587.9,4585.6,0.1088]
[1755180490393,0.20104999,4587.9,4585.0,4.798]
[1755180490394,0.157665,4587.8,4585.8,2.18064459]
[1755180490642,0.002,4588.0,4586.0,2.18054949]
[1755180490846,0.002,4588.0,4587.0,0.1088]
[1755180490999,0.002,4588.0,4587.9,2.17964646]
[1755180491206,0.002,4588.0,4587.9,0.4313]
[1755180492128,0.002,4588.0,4587.6,2.17975073]
[1755180492340,0.002,4588.0,4587.8,6.09866975]
[1755180492503,0.002,4588.0,4587.9,0.45309646]
[1755180492711,0.002,4588.0,4587.9,2.70784927]
[1755180492929,0.002,4588.0,4587.9,2.79565281]
[1755180493314,0.002,4588.3,4588.2,2.17950394]
[1755180493513,0.002,4588.3,4588.2,3.99240394]
[1755180493721,0.002,4588.3,4588.2,4.10120394]
[1755180493898,0.002,4588.3,4588.2,2.71960394]
[1755180494416,0.002,4588.3,4588.2,3.917]
[1755180494742,0.002,4588.3,4588.2,4.3483]
[1755180494944,0.002,4588.3,4588.2,6.23048]
[1755180495140,0.002,4588.5,4588.4,2.17940894]
[1755180495325,0.002,4588.5,4588.4,4.01410302]
[1755180495525,0.002,4588.5,4588.4,7.90930894]
[1755180495837,0.002,4588.5,4588.4,8.96824348]
[1755180496139,0.002,4588.5,4588.4,5.05124348]
[1755180496464,2.17814429,4591.1,4588.9,2.17917147]
[1755180496757,1e-08,4589.0,4588.9,4.12266318]
[1755180496906,1e-08,4589.4,4589.1,2.17906093]
[1755180497106,1e-08,4589.4,4589.3,2.17898154]
[1755180497311,1e-08,4589.4,4589.3,8.93495482]
[1755180497732,1e-08,4589.4,4589.3,12.48495482]
[1755180498450,1e-08,4589.4,4589.3,8.56995482]
[1755180498812,1e-08,4589.4,4589.3,12.37415482]
[1755180499813,1e-08,4589.4,4589.3,8.46115482]
[1755180500211,1e-08,4589.4,4589.3,12.37415482]
[1755180500616,1.3736,4593.7,4589.5,0.65]
[1755180500814,0.13756,4593.4,4592.7,2.17732213]
[1755180501016,1.3736,4593.7,4592.8,6.09030733]
[1755180501210,1.3736,4593.7,4593.1,2.17713539]
[1755180501455,1.7594,4593.4,4591.9,4.792]
[1755180501750,3.0,4593.2,4592.0,3.913]
[1755180501953,3.55,4593.0,4592.1,3.911]
[1755180502147,2.17759633,4592.3,4592.1,3.911]
[1755180502524,2.17760143,4592.3,4591.9,4.792]
[1755180502848,0.4591,4592.8,4592.0,3.911]
[1755180503015,2.17765292,4592.1,4592.0,0.0008]
[1755180503222,6.93705292,4592.1,4592.0,0.0008]
[1755180503451,3.0,4592.0,4590.1,6.96858871]
[1755180503654,2.17790859,4591.6,4590.6,2.17831881]
[1755180503851,1.3003,4592.0,4590.1,4.79]
[1755180504051,2.1779887,4591.4,4590.4,2.17845934]
[1755180504375,3.0,4592.5,4590.4,0.4717]
[1755180504651,2.17774221,4592.0,4590.5,0.73827]
[1755180504876,2.17733107,4592.8,4590.1,4.79]
[1755180504877,2.17792772,4591.6,4590.6,3.911]
[1755180505022,2.17792772,4591.6,4590.7,2.1783072]
[1755180505219,1.32207763,4591.5,4590.8,3.911]
[1755180505414,2.17812668,4591.2,4590.9,3.911]
[1755180505621,1.7594,4591.1,4588.5,0.4717]
[1755180505863,3.55,4590.7,4588.6,4.0983]
[1755180506062,2.17874256,4589.9,4588.6,4.0983]
[1755180506261,1.3003,4590.0,4588.6,4.0983]
[1755180506433,1.3003,4590.0,4589.1,2.17902992]
[1755180506757,1.3003,4590.0,4589.2,6.08902297]
[1755180506957,1.3003,4590.0,4589.2,3.91]
[1755180507161,1.3003,4590.0,4589.2,4.51890713]
[1755180507371,3.0,4590.6,4589.2,4.51890713]
[1755180507664,0.4591,4591.6,4589.3,0.49348981]
[1755180507868,1.3003,4591.8,4589.4,2.17893406]
[1755180507869,3.47810752,4591.8,4589.4,2.17893406]
[1755180508083,2.17803859,4591.3,4589.5,3.909]
[1755180508361,0.4591,4591.7,4590.9,2.1781933]
[1755180508567,1.3003,4591.8,4591.0,3.909]
[1755180508727,1.7594,4592.5,4591.2,0.1088]
[1755180509165,2.17762102,4592.2,4591.3,3.909]
[1755180509366,2.17776549,4591.9,4591.2,0.1088]
[1755180509588,1.32207763,4592.1,4591.3,3.909]
[1755180509752,1.32207763,4592.1,4591.1,2.17812294]
[1755180510066,1.3003,4592.7,4591.2,3.909]
[1755180510389,1.7594,4592.6,4591.1,0.44651517]
[1755180510593,2.17828625,4590.8,4589.1,2.65077502]
[1755180510881,1.3003,4591.2,4589.7,3.909]
[1755180511074,3.47838224,4591.2,4589.7,3.909]
[1755180511244,2.1769119,4593.7,4591.0,2.17816834]
[1755180511448,1.3003,4591.9,4590.6,2.17833233]
[1755180511644,5.1777952,4591.8,4590.8,2.17822315]
[1755180511841,5.1777952,4591.8,4591.0,2.17817011]
[1755180512054,3.0,4591.8,4591.0,2.17813581]
[1755180512265,2.17803749,4591.3,4590.2,2.17853235]
[1755180512446,0.55,4591.0,4589.2,2.78793076]
[1755180512788,2.72826958,4590.8,4589.3,3.908]
[1755180513072,3.0,4590.4,4589.2,0.0008]
[1755180513274,4.32207763,4590.3,4589.2,0.0008]
[1755180513431,3.0,4590.1,4589.2,0.0008]
[1755180513633,2.72898154,4589.3,4589.2,0.0008]
[1755180513933,7.48758154,4589.3,4589.2,0.0008]
[1755180514136,7.48758154,4589.3,4588.0,3.908]
[1755180514137,0.55,4589.1,4588.1,2.17955144]
[1755180514369,0.55,4589.1,4588.0,3.908]
[1755180514370,0.55,4589.1,4588.0,6.08759565]
[1755180514529,2.17925971,4588.8,4588.0,3.908]
[1755180514730,1.7594,4589.3,4588.1,0.02179551]
[1755180514731,1.3003,4589.3,4588.1,0.02179551]
[1755180514943,4.3003,4589.3,4588.5,2.17932482]
[1755180515148,1.3003,4589.3,4588.8,2.17919003]
[1755180515373,2.17908315,4589.1,4588.3,2.17943634]
[1755180515536,2.17908315,4589.1,4587.6,0.4717]
[1755180515537,0.55,4588.9,4587.6,3.908]
[1755180515871,0.55,4588.7,4587.2,0.001]
[1755180516072,5.72993155,4587.3,4587.2,0.001]
[1755180516257,7.48933155,4587.3,4587.2,0.001]
[1755180516462,5.73011873,4587.0,4586.8,0.001]
[1755180516672,1.8503,4586.9,4586.8,0.001]
[1755180516863,1.3003,4586.9,4586.8,0.001]
[1755180517049,4.3003,4586.9,4586.8,0.001]
[1755180517249,1.3003,4586.9,4586.8,0.001]
[1755180517485,4.3003,4586.9,4586.8,0.001]
[1755180517772,0.2006644,4586.9,4586.8,0.001]
[1755180517978,0.2006644,4587.4,4586.8,0.001]
[1755180518193,5.17960503,4588.0,4587.0,2.18007412]
[1755180518473,0.2006644,4587.9,4587.1,2.18000942]
[1755180518689,0.2006644,4587.8,4586.9,6.08808206]
[1755180518976,2.17979937,4587.6,4587.0,3.908]
[1755180519150,0.2006644,4587.5,4587.0,3.908]
[1755180519349,0.2006644,4587.4,4587.1,2.18001296]
[1755180519550,0.2006644,4587.3,4587.1,2.18001296]
[1755180519850,0.2006644,4587.2,4587.1,2.18001296]
[1755180520057,0.2006644,4587.2,4587.1,6.08901296]
[1755180520878,0.2016549,4587.2,4587.1,7.38773942]
[1755180521077,1.3003,4589.0,4588.4,2.17940469]
[1755180521078,0.20162321,4588.9,4588.4,2.17940469]
[1755180521377,0.20162321,4588.8,4588.4,6.08836305]
[1755180521679,0.20162321,4588.7,4588.4,3.909]
[1755180521883,0.20162321,4588.6,4588.4,3.909]
[1755180522118,1.96102321,4588.5,4588.3,2.17944007]
[1755180522257,0.20162321,4588.4,4588.2,3.908]
[1755180522461,0.002,4590.2,4588.3,2.17945644]
[1755180522667,0.002,4590.2,4588.4,2.65109668]
[1755180522881,0.002,4590.2,4589.4,2.17891621]
[1755180523180,0.002,4590.2,4589.5,6.08687481]
[1755180523396,0.02177763,4590.1,4589.4,0.0008]
[1755180523546,5.72888658,4589.5,4589.4,0.0008]
[1755180523885,7.48828658,4589.5,4589.4,0.0008]
[1755180524043,7.48828658,4589.5,4588.4,0.4]
[1755180524044,0.55,4589.3,4588.4,2.57936885]
[1755180524378,0.55,4589.3,4588.5,0.4]
[1755180524702,0.57177763,4589.2,4588.5,0.4]
[1755180524839,0.02177763,4589.2,4588.5,4.308]
[1755180525039,3.002,4590.2,4588.5,4.308]
[1755180525040,2.1805608,4590.2,4588.7,2.17922395]
[1755180525244,0.002,4590.2,4588.8,0.4]
[1755180525485,0.002,4590.2,4589.7,2.17878936]
[1755180525791,0.002,4590.2,4589.8,3.908]
[1755180526159,0.002,4590.2,4590.0,2.178623]
[1755180526470,0.002,4590.2,4590.1,3.908]
[1755180526665,1.7614,4590.2,4589.8,0.4]
[1755180526974,4.50978405,4590.1,4589.8,0.4]
[1755180527157,5.7286967,4589.9,4589.8,0.4]
[1755180527362,1.7594,4589.9,4587.4,0.1088]
[1755180527666,7.10280341,4590.2,4587.4,0.1088]
[1755180527667,0.55,4589.0,4588.1,2.17954662]
[1755180527844,0.55,4588.9,4588.0,2.5795984]
[1755180528176,1.3003,4589.7,4588.0,0.4]
[1755180528380,0.55,4589.0,4588.0,0.4]
[1755180528604,0.55,4588.8,4588.0,0.4]
[1755180528808,1.32207763,4588.9,4588.0,0.4]
[1755180528809,0.55,4588.1,4588.0,0.4]
[1755180529102,1.3003,4588.1,4587.1,0.1088]
[1755180529404,0.55,4587.7,4587.2,0.02]
[1755180529564,5.72993155,4587.3,4587.2,0.02]
[1755180529768,4.8503,4587.3,4587.2,0.02]
[1755180530068,5.17998489,4587.2,4586.8,0.001]
[1755180530272,0.55,4587.2,4586.8,0.001]
[1755180530480,0.55,4587.9,4586.8,0.001]
[1755180530693,3.55,4587.7,4586.8,0.001]
[1755180530870,0.55,4587.7,4586.8,0.001]
[1755180531198,2.17983651,4587.5,4586.8,3.909]
[1755180531500,1.85207763,4587.4,4586.8,0.001]
[1755180531704,2.73002659,4587.1,4586.8,0.001]
[1755180531905,2.73012165,4586.9,4586.8,0.001]
[1755180532092,7.45782165,4586.9,4586.8,0.001]
[1755180533381,7.45782165,4586.9,4586.8,0.0018]
[1755180533580,7.88156506,4586.9,4586.8,0.0018]
[1755180533804,2.18021671,4586.7,4586.6,1e-08]
[1755180533968,7.47969434,4586.7,4586.6,1e-08]
[1755180534169,7.45791671,4586.7,4586.6,1e-08]
[1755180534412,12.36435923,4586.7,4586.6,1e-08]
[1755180534612,12.56611606,4586.7,4583.6,0.567]
[1755180534796,0.55,4585.0,4583.6,0.567]
[1755180534993,0.55,4584.8,4583.9,0.12]
[1755180535198,0.20176318,4584.7,4583.9,0.12]
[1755180535493,2.18126605,4584.5,4583.9,0.12]
[1755180535696,0.20176318,4584.4,4583.9,0.12]
[1755180535897,0.20176318,4584.3,4583.9,0.12]
[1755180536103,0.20176318,4584.2,4584.0,0.4582]
[1755180536303,2.18097751,4585.1,4584.1,0.12]
[1755180536503,0.20149514,4585.0,4584.1,0.12]
[1755180536704,2.73076557,4585.6,4584.1,0.12]
[1755180536705,0.20149514,4584.9,4584.1,0.12]
[1755180536882,0.20149514,4584.8,4584.2,0.1088]
[1755180537233,0.20147093,4585.8,4584.4,2.18131053]
[1755180537378,2.18098069,4585.1,4584.3,0.4582]
[1755180537579,0.22316942,4585.0,4584.3,2.18135794]
[1755180537814,0.20139179,4584.9,4584.5,2.18125673]
[1755180538018,0.20139179,4585.2,4584.3,2.1813539]
[1755180538180,0.55,4585.8,4584.3,2.1813539]
[1755180538181,0.20139179,4585.1,4584.6,0.4582]
[1755180538379,3.0,4586.6,4584.7,0.4582]
[1755180538380,0.20139179,4585.0,4584.7,0.4582]
[1755180538716,0.20139179,4584.9,4584.5,0.12]
[1755180538912,0.20139179,4584.8,4584.5,0.12]
[1755180539215,0.20139179,4584.7,4584.5,0.12]
[1755180539388,0.20139179,4584.6,4584.5,2.30126295]
[1755180539714,0.20059179,4585.3,4584.5,4.2492437]
[1755180539879,2.18044084,4586.3,4584.6,2.18121537]
[1755180540081,0.11183111,4586.8,4584.7,0.02181167]
[1755180540285,0.11183111,4586.8,4585.3,0.1088]
[1755180540517,0.11183111,4586.8,4586.7,2.18021671]
[1755180540719,0.11183111,4586.8,4586.7,8.24216715]
[1755180540881,0.02177763,4588.8,4586.7,6.06195044]
[1755180541093,2.33934052,4588.9,4586.8,0.48000169]
[1755180541296,0.02177763,4588.9,4586.8,0.4582]
[1755180541528,2.17964267,4588.0,4587.1,2.28882588]
[1755180541729,0.02177763,4588.9,4587.1,2.28882588]
[1755180541730,1.2803,4589.1,4587.9,2.17961658]
[1755180542027,3.45938249,4589.1,4587.9,2.17964646]
[1755180542191,3.45938249,4589.1,4587.4,0.1088]
[1755180542192,1.30207763,4589.1,4587.5,2.17983472]
[1755180542394,0.02177763,4589.1,4587.5,3.908]
[1755180542593,1.30207763,4589.5,4587.8,2.17966383]
[1755180542835,0.02177763,4589.4,4587.6,0.4582]
[1755180543002,5.34262427,4589.4,4588.2,2.17948438]
[1755180543207,2.17947341,4588.3,4587.5,0.1088]
[1755180543534,2.17929804,4588.7,4587.7,2.17974148]
[1755180543743,2.17934233,4588.6,4587.8,3.908]
[1755180544035,3.0,4589.0,4587.8,3.908]
[1755180544239,1.39074361,4590.0,4587.9,0.4582]
[1755180544439,2.17879164,4589.7,4588.3,2.1794132]
[1755180544600,0.02177763,4589.6,4588.2,3.907]
[1755180544799,1.30207763,4589.6,4587.9,3.907]
[1755180545138,0.55,4589.4,4587.3,0.1088]
[1755180545444,0.55,4588.4,4587.1,0.1088]
[1755180545753,2.17941843,4588.4,4587.5,2.17983473]
[1755180546040,1.2803,4589.1,4587.6,2.20154495]
[1755180546200,0.55,4588.9,4588.2,2.17950163]
[1755180546395,0.55,4588.9,4588.3,6.08645391]
[1755180546601,3.45912652,4589.7,4588.5,2.17932237]
[1755180546800,2.17890514,4589.5,4588.6,2.17931133]
[1755180547000,0.16508722,4589.8,4588.2,0.4582]
[1755180547231,2.17904503,4589.2,4588.3,2.17945644]
[1755180547460,0.55,4589.6,4588.2,3.906]
[1755180547625,0.55,4589.0,4588.2,3.906]
[1755180547830,2.17901757,4589.3,4588.3,2.17941619]
[1755180548055,2.17901757,4589.3,4588.3,2.17941545]
[1755180548252,2.17903019,4589.2,4588.2,3.906]
[1755180548462,3.0,4589.6,4588.2,3.906]
[1755180548632,2.17883911,4589.6,4588.4,2.17940894]
[1755180548840,2.17883911,4589.6,4588.3,0.1088]
[1755180548841,0.55,4589.6,4588.8,2.17920213]
[1755180549068,3.55,4589.6,4588.3,0.1088]
[1755180549369,0.55,4589.7,4588.4,4.3642]
[1755180549567,0.002,4589.8,4588.8,0.1088]
[1755180549732,0.002,4589.8,4589.4,2.17889402]
[1755180549938,0.002,4589.8,4588.8,0.1088]
[1755180549939,0.002,4589.8,4589.6,2.17883267]
[1755180550139,0.002,4589.8,4589.7,0.4582]
[1755180550570,0.002,4589.8,4589.5,3.905]
[1755180550764,0.002,4589.8,4589.1,0.567]
[1755180550940,0.002,4589.8,4589.3,2.17898154]
[1755180551139,1.2803,4589.7,4588.2,0.4582]
[1755180551459,1.2803,4589.7,4588.4,3.905]
[1755180551656,2.17921946,4588.8,4587.8,3.905]
[1755180551878,0.55,4588.8,4587.9,2.17964646]
[1755180552063,0.55,4588.8,4587.8,3.905]
[1755180552584,3.0,4589.0,4588.2,2.17949476]
[1755180552783,2.17911657,4589.1,4587.8,3.905]
[1755180552784,3.0,4589.1,4588.4,2.17940823]
[1755180553084,2.72900506,4589.3,4588.5,2.17933491]
[1755180553377,2.17904323,4589.2,4588.3,2.28821597]
[1755180553594,0.55,4589.1,4587.5,0.4582]
[1755180553740,2.17933425,4588.6,4587.6,3.904]
[1755180553941,0.46917763,4588.5,4585.6,2.18070562]
[1755180554142,3.0,4588.4,4586.5,0.1088]
[1755180554362,2.17979206,4587.6,4586.5,2.28909871]
[1755180554682,2.17989947,4587.4,4586.5,0.1088]
[1755180554911,0.57177763,4587.3,4585.9,0.4582]
[1755180555109,2.1801091,4587.0,4585.8,3.904]
[1755180555415,2.18035249,4586.5,4585.7,3.904]
[1755180555714,1.2803,4587.2,4586.3,2.18040494]
[1755180555928,3.0,4586.9,4585.8,3.903]
[1755180556078,5.18016918,4586.8,4585.8,3.903]
[1755180556278,0.55,4587.3,4586.4,2.18034385]
[1755180556576,2.18004486,4587.1,4585.8,3.903]
[1755180556783,0.02177763,4587.0,4585.7,0.4582]
[1755180556985,0.55,4586.9,4585.8,3.903]
[1755180557204,3.55,4587.2,4586.2,2.18043689]
[1755180557424,3.0,4587.8,4586.3,2.18039697]
[1755180557575,0.55,4587.2,4586.3,3.903]
[1755180557782,0.55,4587.2,4585.9,0.1088]
[1755180558090,2.18002659,4587.1,4586.2,2.18044576]
[1755180558277,3.0,4587.1,4586.5,2.18026996]
[1755180558636,2.18011339,4587.0,4586.0,3.903]
[1755180558821,3.0,4587.4,4586.0,4.35]
[1755180559127,2.17950515,4588.2,4586.1,1.7179]
[1755180559282,0.20210032,4588.7,4586.2,1.7179]
[1755180559476,2.1793825,4588.5,4587.6,2.17975654]
[1755180559675,1.2803,4588.9,4587.7,3.903]
[1755180559906,1.2803,4588.9,4587.2,0.1088]
[1755180560113,2.17981296,4587.6,4586.6,3.903]
[1755180560314,0.002,4587.6,4586.8,2.18016918]
[1755180560512,0.002,4587.6,4587.0,2.18005752]
[1755180560759,0.002,4587.6,4586.8,2.18015845]
[1755180560931,0.002,4587.6,4586.6,4.0118]
[1755180561134,0.002,4587.6,4587.0,2.18006264]
[1755180561347,0.002,4587.1,4587.0,2.18006264]
[1755180561653,0.002,4587.1,4587.0,6.51256264]
[1755180561816,0.002,4587.1,4587.0,7.87896264]
[1755180562745,0.002,4587.1,4587.0,7.87976264]
[1755180562926,0.002,4587.1,4587.0,9.14389068]
[1755180564223,0.002,4587.6,4587.5,2.17983651]
[1755180564541,0.002,4587.6,4587.5,6.62013651]
[1755180564715,0.002,4587.6,4587.5,6.18963651]
[1755180565216,0.002,4587.6,4587.5,7.87773651]
[1755180565418,0.002,4589.8,4587.6,3.0]
[1755180565650,0.002,4589.8,4587.8,5.17969397]
[1755180565849,0.002,4589.8,4589.1,2.28787014]
[1755180566190,0.002,4589.8,4589.6,2.1787967]
[1755180566358,0.002,4589.8,4589.7,2.17879164]
[1755180566554,0.002,4589.8,4589.6,0.4305]
[1755180566726,0.002,4589.8,4589.6,3.9]
[1755180566926,0.002,4589.8,4588.6,0.1088]
[1755180566927,1.2515,4589.7,4588.6,0.1088]
[1755180567146,0.55,4589.6,4588.6,0.1088]
[1755180567343,2.1790704,4589.2,4588.6,3.9]
[1755180567730,2.1790704,4589.2,4587.6,0.4305]
[1755180567731,1.2515,4589.1,4588.5,3.9]
[1755180567931,1.2515,4589.1,4587.6,0.4305]
[1755180567932,2.17912562,4589.0,4588.6,3.9]
[1755180568133,0.4538,4589.2,4588.7,3.9]
[1755180568473,0.55,4589.6,4588.5,3.9]
[1755180568474,2.17931392,4588.7,4588.5,3.9]
[1755180568669,2.17923053,4588.8,4587.7,2.28849854]
[1755180568968,1.2515,4588.7,4587.7,2.84525501]
[1755180569179,1.2515,4588.7,4587.8,3.899]
[1755180570308,3.0,4588.6,4588.0,2.17958274]
[1755180570469,2.17941071,4588.4,4587.8,3.899]
[1755180570665,2.17935837,4588.6,4587.5,4.792]
[1755180570869,2.17936911,4588.5,4587.7,2.17971713]
[1755180571081,0.55,4588.3,4587.5,4.792]
[1755180571279,0.55,4588.4,4587.6,3.898]
[1755180571500,3.0,4588.7,4587.7,0.02179741]
[1755180571714,2.17961902,4588.0,4587.3,0.1088]
[1755180572002,1.2515,4588.1,4587.4,3.898]
[1755180572501,2.17959895,4588.0,4587.4,3.898]
[1755180572799,1.2515,4588.1,4587.0,2.18083427]
[1755180572800,1.2515,4588.1,4587.5,3.898]
[1755180573002,1.2515,4588.1,4587.5,3.8988]
[1755180573309,3.0,4589.5,4587.8,0.1088]
[1755180573470,2.63259219,4589.7,4588.1,2.17955144]
[1755180573811,0.002,4589.8,4588.9,0.1088]
[1755180573976,0.002,4589.8,4589.0,4.34929123]
[1755180574168,0.002,4589.8,4589.4,0.1088]
[1755180574366,0.002,4589.8,4589.5,2.83812466]
[1755180574568,0.002,4589.8,4589.4,0.02]
[1755180574768,0.002,4589.8,4589.5,3.897]
[1755180574997,0.002,4589.8,4589.4,0.02]
[1755180575200,0.002,4589.8,4589.5,3.897]
[1755180575402,1.2515,4589.7,4589.5,0.02]
[1755180576107,2.17888658,4589.5,4588.7,0.1088]
[1755180576313,3.0,4589.5,4589.2,3.896]
[1755180576622,2.17915999,4589.0,4588.2,3.896]
[1755180576766,5.17902259,4589.3,4588.2,6.68303632]
[1755180576968,5.179023,4589.3,4588.2,4.50355124]
[1755180577199,3.0,4589.3,4588.6,2.17931244]
[1755180577577,3.0,4589.6,4588.3,0.1088]
[1755180577815,0.002,4589.8,4588.9,0.1088]
[1755180578112,0.002,4589.8,4589.7,2.17879164]
[1755180578273,0.002,4589.8,4589.7,4.0038]
[1755180578472,0.002,4589.8,4589.7,0.1088]
[1755180578792,0.002,4589.8,4589.7,6.07379164]
[1755180578994,0.002,4589.8,4589.7,7.2404708]
[1755180580181,0.002,4589.8,4589.7,8.4980708]
[1755180581173,0.002,4589.8,4589.7,4.4942708]
[1755180581413,0.002,4589.8,4589.7,8.4970708]
[1755180581572,0.002,4589.8,4589.7,6.63209164]
[1755180581777,0.002,4589.8,4589.7,6.20059164]
[1755180581977,0.002,4589.8,4589.7,2.30759164]
[1755180582209,0.002,4589.8,4589.7,6.20059164]
[1755180582713,0.002,4589.8,4589.7,0.1288]
[1755180582878,3.88604417,4589.8,4589.7,0.1288]
[1755180583080,8.04251527,4589.8,4589.7,0.02]
[1755180583280,8.04251527,4589.8,4589.7,0.0208]
[1755180583994,8.04251527,4589.8,4589.7,0.0008]
[1755180584578,2.1788615,4589.6,4588.7,0.09]
[1755180584797,3.55,4589.5,4588.7,0.09]
[1755180584997,2.17921896,4588.8,4588.7,0.09]
[1755180585536,1.2515,4588.8,4588.7,0.09]
[1755180585691,7.45629659,4588.8,4588.7,0.09]
[1755180585881,7.43451896,4588.8,4588.7,0.09]
[1755180586084,7.59684226,4588.8,4588.7,0.09]
[1755180586384,8.20331336,4588.8,4588.7,0.09]
[1755180588191,7.59684226,4588.8,4587.0,4.789]
[1755180588533,2.18021935,4586.7,4585.9,6.07159464]
[1755180588821,2.18026356,4586.7,4585.9,3.891]
[1755180589031,2.18004276,4587.1,4586.1,2.18050195]
[1755180589198,3.0,4587.3,4586.0,1.03766437]
[1755180589403,3.55,4588.0,4586.4,2.18035575]
[1755180589600,2.17983757,4587.5,4586.2,2.18041844]
[1755180589807,0.55,4588.0,4586.3,0.4305]
[1755180590125,3.0,4588.0,4586.3,0.4305]
[1755180590315,0.55,4588.1,4586.3,0.4305]
[1755180590516,3.0,4588.0,4586.4,0.16881]
[1755180590719,2.1796845,4587.9,4587.1,2.18002304]
[1755180591023,2.17974434,4587.7,4587.2,3.89]
[1755180591249,2.1796944,4587.8,4587.2,3.89]
[1755180591402,2.17965374,4587.9,4587.2,3.89]
[1755180591604,3.0,4588.0,4587.2,3.89]
[1755180591914,2.17976087,4587.7,4587.1,3.89]
[1755180592221,2.17976087,4587.7,4585.7,2.18069215]
[1755180592222,0.55,4587.5,4585.7,2.18069215]
[1755180592404,0.57177763,4587.5,4586.0,2.18053105]
[1755180592742,0.02177763,4587.5,4586.0,2.18054562]
[1755180592948,2.18016545,4586.9,4586.0,2.18054562]
[1755180593314,3.55,4587.5,4585.9,3.89]
[1755180593509,0.55,4586.9,4585.9,0.0008]
[1755180593710,0.55,4586.9,4586.1,2.18045584]
[1755180593947,2.18016218,4586.9,4586.0,2.18050353]
[1755180594212,2.18016218,4586.9,4586.1,3.889]
[1755180594449,2.18016218,4586.9,4585.9,0.0008]
[1755180594450,2.18054949,4586.0,4585.9,0.0008]
[1755180594607,2.73069215,4585.7,4585.6,0.1098]
[1755180594808,4.52309215,4585.7,4585.6,0.1098]
[1755180595175,7.68753335,4585.7,4585.6,1e-08]
[1755180596261,2.18092994,4585.2,4584.7,0.001]
[1755180596444,2.20270757,4585.2,4584.7,0.001]
[1755180596644,3.99510757,4585.2,4584.7,0.001]
[1755180597482,3.97332994,4585.2,4584.7,0.001]
[1755180597652,3.99510757,4585.2,4584.7,0.001]
[1755180599650,2.18092994,4585.2,4584.7,0.001]
[1755180600145,4.54510757,4585.2,4584.7,0.001]
[1755180600349,7.52332994,4585.2,4584.7,0.001]
[1755180600553,7.52332994,4585.2,4584.0,0.003]
[1755180600554,0.55,4584.7,4584.0,0.003]
[1755180600768,5.73145328,4584.1,4584.0,0.003]
[1755180600926,3.0,4584.0,4581.9,0.4687]
[1755180601126,0.55,4583.6,4582.1,2.18237444]
[1755180601322,3.0,4583.6,4582.4,2.1822274]
[1755180601559,3.0,4583.6,4582.2,0.49052357]
[1755180601560,2.18159605,4583.8,4582.5,0.4687]
[1755180601772,0.57177763,4583.5,4582.0,0.4687]
[1755180602266,2.1816977,4583.6,4582.1,0.02182405]
[1755180602576,3.888,4584.1,4582.7,2.18210149]
[1755180602736,4.3336,4585.0,4582.8,1.94313087]
[1755180603062,2.18100591,4585.1,4584.0,2.18148993]
[1755180603263,2.18078726,4585.5,4584.4,2.18130399]
[1755180603430,2.18091187,4585.3,4584.4,0.4687]
[1755180603620,2.18093853,4585.2,4584.4,0.4687]
[1755180603848,0.4588,4586.9,4584.5,1.25621262]
[1755180604049,2.18012165,4586.9,4584.6,0.4687]
[1755180604356,1.3336,4587.8,4584.7,5.20297946]
[1755180604662,2.17973911,4587.8,4585.0,0.55]
[1755180604860,0.4588,4588.8,4585.3,2.18088238]
[1755180605060,0.65239688,4588.7,4586.7,0.1088]
[1755180605254,0.4588,4589.5,4587.4,0.1088]
[1755180605454,2.17880276,4589.7,4587.9,0.1088]
[1755180605660,0.02177763,4589.6,4588.2,0.1088]
[1755180605857,2.1790765,4589.1,4586.2,4.794]
[1755180606042,3.0,4588.6,4586.2,0.4687]
[1755180606262,2.17945644,4588.3,4585.7,0.4687]
[1755180606496,0.55,4587.9,4585.1,0.001]
[1755180606647,3.0,4587.2,4585.1,0.001]